[Event "Late-Titled-Tuesday-Blitz-September-26-2023"]
[Site "Chess.com"]
[Date "2023.09.26"]
[Round "4"]
[White "traack"]
[Black "glebus008"]
[Result "1-0"]
[WhiteElo "2400"]
[BlackElo "2271"]
[TimeControl "180+1"]
[EndTime "14:38:11 PDT"]
[Termination "traack won by resignation"]

1. e4 {[%clk 0:02:59.9]} 1... c5 {[%clk 0:02:54.6]} 2. Nf3 {[%clk 0:02:57.4]}
2... d6 {[%clk 0:02:52.9]} 3. d4 {[%clk 0:02:57.1]} 3... cxd4 {[%clk 0:02:52.4]}
4. Nxd4 {[%clk 0:02:58]} 4... Nf6 {[%clk 0:02:51.4]} 5. Nc3 {[%clk 0:02:57]}
5... Nc6 {[%clk 0:02:51.2]} 6. Bg5 {[%clk 0:02:55.7]} 6... e6 {[%clk 0:02:43.5]}
7. Qd2 {[%clk 0:02:47.4]} 7... a6 {[%clk 0:02:39.2]} 8. O-O-O {[%clk 0:02:47]}
8... Bd7 {[%clk 0:02:38.5]} 9. f3 {[%clk 0:02:40.4]} 9... Nxd4 {[%clk
0:02:37.2]} 10. Qxd4 {[%clk 0:02:39.8]} 10... b5 {[%clk 0:02:36.3]} 11. Kb1
{[%clk 0:02:29.9]} 11... Be7 {[%clk 0:02:22.8]} 12. Qd2 {[%clk 0:02:29.2]} 12...
b4 {[%clk 0:02:18.9]} 13. Ne2 {[%clk 0:02:26.7]} 13... h6 {[%clk 0:02:14.3]} 14.
Be3 {[%clk 0:02:26]} 14... e5 {[%clk 0:02:10.1]} 15. Ng3 {[%clk 0:02:17.6]}
15... Qa5 {[%clk 0:02:01.9]} 16. Bc4 {[%clk 0:02:15.9]} 16... Be6 {[%clk
0:01:58.1]} 17. Bb3 {[%clk 0:02:10.3]} 17... Qb5 {[%clk 0:01:52.2]} 18. Nf5
{[%clk 0:02:04.4]} 18... Bxf5 {[%clk 0:01:51]} 19. exf5 {[%clk 0:02:04.5]} 19...
a5 {[%clk 0:01:49.4]} 20. Bd5 {[%clk 0:01:46.2]} 20... Rc8 {[%clk 0:01:22.3]}
21. g4 {[%clk 0:01:41.5]} 21... a4 {[%clk 0:01:14.8]} 22. h4 {[%clk 0:01:36.1]}
22... a3 {[%clk 0:01:13.1]} 23. Bb3 {[%clk 0:01:24.3]} 23... axb2 {[%clk
0:01:10.8]} 24. g5 {[%clk 0:01:22.6]} 24... Nd7 {[%clk 0:01:03.1]} 25. g6 {[%clk
0:01:16.6]} 25... fxg6 {[%clk 0:00:45.2]} 26. fxg6 {[%clk 0:01:15.8]} 26... Rf8
{[%clk 0:00:44.8]} 27. Bf7+ {[%clk 0:01:14.8]} 27... Rxf7 {[%clk 0:00:43.9]} 28.
gxf7+ {[%clk 0:01:15.7]} 28... Kxf7 {[%clk 0:00:33.1]} 29. Qd5+ {[%clk
0:01:14.4]} 29... Qxd5 {[%clk 0:00:31.6]} 30. Rxd5 {[%clk 0:01:15.3]} 30... Rc3
{[%clk 0:00:25.1]} 31. Rd3 {[%clk 0:01:13]} 31... Rxd3 {[%clk 0:00:24.2]} 32.
cxd3 {[%clk 0:01:12.9]} 32... d5 {[%clk 0:00:24.3]} 33. h5 {[%clk 0:01:11.3]}
33... d4 {[%clk 0:00:23.7]} 34. Bd2 {[%clk 0:01:11.1]} 34... Nf6 {[%clk
0:00:23]} 35. Kxb2 {[%clk 0:01:09.4]} 35... Nd5 {[%clk 0:00:22.6]} 36. Kb3
{[%clk 0:01:09.7]} 36... Ke6 {[%clk 0:00:18]} 37. Rg1 {[%clk 0:01:07.4]} 37...
Kf5 {[%clk 0:00:15.2]} 38. Rxg7 {[%clk 0:01:04.6]} 38... Bf6 {[%clk 0:00:15.3]}
39. Rd7 {[%clk 0:01:00]} 39... Nf4 {[%clk 0:00:14.9]} 40. Bxf4 {[%clk
0:00:52.9]} 40... Kxf4 {[%clk 0:00:15.8]} 41. Rf7 {[%clk 0:00:53]} 41... Kg5
{[%clk 0:00:15.9]} 42. Rxf6 {[%clk 0:00:47.5]} 42... Kxf6 {[%clk 0:00:15.6]} 43.
Kxb4 {[%clk 0:00:48.3]} 43... Kf5 {[%clk 0:00:15.6]} 44. a4 {[%clk 0:00:48.9]}
44... Kf4 {[%clk 0:00:15.8]} 45. a5 {[%clk 0:00:47.2]} 45... Ke3 {[%clk
0:00:15.3]} 46. a6 {[%clk 0:00:46.2]} 46... Kxd3 {[%clk 0:00:15.5]} 47. a7
{[%clk 0:00:46.8]} 47... Kc2 {[%clk 0:00:15.5]} 48. a8=Q {[%clk 0:00:47.2]}
48... d3 {[%clk 0:00:16.3]} 49. Qe4 {[%clk 0:00:47.5]} 49... Kd2 {[%clk
0:00:15.7]} 50. Qxe5 {[%clk 0:00:47.6]} 50... Kc1 {[%clk 0:00:15.5]} 51. Qe1+
{[%clk 0:00:38.8]} 1-0

[Event "Late-Titled-Tuesday-Blitz-September-26-2023"]
[Site "Chess.com"]
[Date "2023.09.26"]
[Round "4"]
[White "AlexandraBotez"]
[Black "Chessbard1972"]
[Result "0-1"]
[WhiteElo "2229"]
[BlackElo "2375"]
[TimeControl "180+1"]
[EndTime "14:38:11 PDT"]
[Termination "Chessbard1972 won by resignation"]

1. d4 {[%clk 0:03:00.9]} 1... Nf6 {[%clk 0:02:59.2]} 2. c4 {[%clk 0:02:53.5]}
2... g6 {[%clk 0:02:57.9]} 3. Nc3 {[%clk 0:02:53.2]} 3... Bg7 {[%clk 0:02:58.2]}
4. e4 {[%clk 0:02:52.1]} 4... d6 {[%clk 0:02:59.1]} 5. f3 {[%clk 0:02:51.5]}
5... O-O {[%clk 0:03:00]} 6. Be3 {[%clk 0:02:49.9]} 6... Nbd7 {[%clk 0:03:00.1]}
7. Qd2 {[%clk 0:02:49.9]} 7... Re8 {[%clk 0:02:59.8]} 8. Nge2 {[%clk 0:02:48.9]}
8... c5 {[%clk 0:02:59.4]} 9. g3 {[%clk 0:02:37.7]} 9... cxd4 {[%clk 0:02:46.7]}
10. Nxd4 {[%clk 0:02:37.6]} 10... Ne5 {[%clk 0:02:45.6]} 11. b3 {[%clk
0:02:28.8]} 11... a6 {[%clk 0:02:39.6]} 12. Bg2 {[%clk 0:02:28.7]} 12... Bd7
{[%clk 0:02:37.4]} 13. O-O {[%clk 0:02:28.1]} 13... Rc8 {[%clk 0:02:35.8]} 14.
Rac1 {[%clk 0:02:17.2]} 14... Nc6 {[%clk 0:02:22.2]} 15. Nd5 {[%clk 0:02:15.2]}
15... Nxd4 {[%clk 0:02:21.2]} 16. Bxd4 {[%clk 0:02:15.5]} 16... Nxd5 {[%clk
0:02:18.7]} 17. exd5 {[%clk 0:02:15.5]} 17... e5 {[%clk 0:02:12.6]} 18. Be3
{[%clk 0:02:07.4]} 18... f5 {[%clk 0:02:10.3]} 19. Qb4 {[%clk 0:02:02.8]} 19...
Qc7 {[%clk 0:02:07.1]} 20. Bb6 {[%clk 0:02:02.2]} 20... Qb8 {[%clk 0:02:06.9]}
21. Rfe1 {[%clk 0:01:58.4]} 21... Rf8 {[%clk 0:02:02.8]} 22. Bh3 {[%clk
0:01:40]} 22... Rce8 {[%clk 0:01:59.6]} 23. c5 {[%clk 0:01:36.9]} 23... dxc5
{[%clk 0:01:54.5]} 24. Bxc5 {[%clk 0:01:37]} 24... Rf7 {[%clk 0:01:54.4]} 25.
Bd6 {[%clk 0:01:35]} 25... Qd8 {[%clk 0:01:46]} 26. Bc7 {[%clk 0:01:27.8]} 26...
Qg5 {[%clk 0:01:39.4]} 27. f4 {[%clk 0:01:10.2]} 27... Qh5 {[%clk 0:01:37.3]}
28. Bg2 {[%clk 0:01:06.8]} 28... e4 {[%clk 0:01:35]} 29. Qxb7 {[%clk 0:01:01.5]}
29... Bb5 {[%clk 0:01:29.5]} 30. d6 {[%clk 0:00:57.5]} 30... Bd4+ {[%clk
0:01:28]} 31. Kh1 {[%clk 0:00:57]} 31... Bf2 {[%clk 0:01:24.9]} 32. h3 {[%clk
0:00:34.3]} 32... Bxg3 {[%clk 0:01:17.5]} 33. Red1 {[%clk 0:00:18.8]} 33... Bxf4
{[%clk 0:01:06.1]} 34. d7 {[%clk 0:00:18.7]} 34... Bxd7 {[%clk 0:00:31.8]} 35.
Bxf4 {[%clk 0:00:16.2]} 35... Bb5 {[%clk 0:00:28.3]} 36. Qd5 {[%clk 0:00:13.7]}
36... Be2 {[%clk 0:00:24.8]} 37. Rc7 {[%clk 0:00:12.4]} 37... Rf8 {[%clk
0:00:22.5]} 38. Rxf7 {[%clk 0:00:11.7]} 38... Rxf7 {[%clk 0:00:22.3]} 39. Rc1
{[%clk 0:00:12.5]} 39... Bf3 {[%clk 0:00:18.9]} 40. Be5 {[%clk 0:00:09.3]} 40...
Qxh3+ {[%clk 0:00:15.4]} 0-1

[Event "Late-Titled-Tuesday-Blitz-September-26-2023"]
[Site "Chess.com"]
[Date "2023.09.26"]
[Round "4"]
[White "acertijo08"]
[Black "Journey_to_GrandMaster_YT"]
[Result "1-0"]
[WhiteElo "2398"]
[BlackElo "2604"]
[TimeControl "180+1"]
[EndTime "14:38:15 PDT"]
[Termination "acertijo08 won on time"]

1. e4 {[%clk 0:03:00.9]} 1... d6 {[%clk 0:03:00.9]} 2. d4 {[%clk 0:03:00.5]}
2... Nf6 {[%clk 0:03:00.9]} 3. Nc3 {[%clk 0:03:00.8]} 3... e5 {[%clk 0:03:00.7]}
4. Nf3 {[%clk 0:03:00.5]} 4... Nbd7 {[%clk 0:03:00.7]} 5. Bc4 {[%clk 0:03:00.6]}
5... Be7 {[%clk 0:03:01.2]} 6. O-O {[%clk 0:03:00.5]} 6... O-O {[%clk
0:03:01.8]} 7. Re1 {[%clk 0:02:59.6]} 7... c6 {[%clk 0:03:02.1]} 8. a4 {[%clk
0:02:59.7]} 8... a5 {[%clk 0:03:02.4]} 9. b3 {[%clk 0:02:59.7]} 9... exd4 {[%clk
0:03:02]} 10. Nxd4 {[%clk 0:02:59.7]} 10... Ne5 {[%clk 0:03:01.7]} 11. Bf1
{[%clk 0:02:57.2]} 11... Re8 {[%clk 0:03:01.8]} 12. Bb2 {[%clk 0:02:55.9]} 12...
Qb6 {[%clk 0:03:00.3]} 13. h3 {[%clk 0:02:50.7]} 13... Bf8 {[%clk 0:02:46.2]}
14. Kh1 {[%clk 0:02:43.1]} 14... Ng6 {[%clk 0:02:29.9]} 15. Qd2 {[%clk
0:02:37.4]} 15... Bd7 {[%clk 0:02:23.8]} 16. f4 {[%clk 0:02:34.4]} 16... Rad8
{[%clk 0:01:56.9]} 17. Rad1 {[%clk 0:02:31.7]} 17... Bc8 {[%clk 0:01:51.3]} 18.
Nf3 {[%clk 0:02:11.7]} 18... Nh5 {[%clk 0:01:40.7]} 19. f5 {[%clk 0:01:55.6]}
19... Ng3+ {[%clk 0:01:40.3]} 20. Kh2 {[%clk 0:01:54.8]} 20... Nxf1+ {[%clk
0:01:40.2]} 21. Rxf1 {[%clk 0:01:55]} 21... Ne5 {[%clk 0:01:40.3]} 22. Ne2
{[%clk 0:01:46.2]} 22... f6 {[%clk 0:01:38]} 23. Nf4 {[%clk 0:01:40.6]} 23...
Nc4 {[%clk 0:00:57.3]} 24. bxc4 {[%clk 0:01:21.9]} 24... Qxb2 {[%clk 0:00:57.1]}
25. Qd3 {[%clk 0:01:14.6]} 25... Qb4 {[%clk 0:00:45.7]} 26. Nd4 {[%clk
0:01:10.1]} 26... Qxa4 {[%clk 0:00:34.2]} 27. Nde6 {[%clk 0:01:09.5]} 27... Bxe6
{[%clk 0:00:33.8]} 28. Nxe6 {[%clk 0:01:07.6]} 28... Ra8 {[%clk 0:00:30.8]} 29.
Ra1 {[%clk 0:00:58.6]} 29... Qb4 {[%clk 0:00:29.6]} 30. Rfb1 {[%clk 0:00:57.7]}
30... Qxb1 {[%clk 0:00:12.6]} 31. Rxb1 {[%clk 0:00:57.5]} 31... Reb8 {[%clk
0:00:09.2]} 32. Nxf8 {[%clk 0:00:52.2]} 32... Kxf8 {[%clk 0:00:08.7]} 33. Qxd6+
{[%clk 0:00:52.7]} 33... Kg8 {[%clk 0:00:08.5]} 34. e5 {[%clk 0:00:49.5]} 34...
fxe5 {[%clk 0:00:07.2]} 35. f6 {[%clk 0:00:47.8]} 35... gxf6 {[%clk 0:00:02.9]}
36. Qxf6 {[%clk 0:00:47.9]} 36... Rf8 {[%clk 0:00:02.7]} 37. Qe6+ {[%clk
0:00:47.5]} 37... Rf7 {[%clk 0:00:01.5]} 38. Rxb7 {[%clk 0:00:45.6]} 38... Rf8
{[%clk 0:00:01.8]} 39. Rxf7 {[%clk 0:00:44.2]} 39... Rxf7 {[%clk 0:00:02.7]} 40.
Qxe5 {[%clk 0:00:44.3]} 40... a4 {[%clk 0:00:02.6]} 41. Qa5 {[%clk 0:00:42.7]}
41... Kg7 {[%clk 0:00:02.2]} 42. Qxa4 {[%clk 0:00:42.9]} 42... Rf5 {[%clk
0:00:02.6]} 43. Qxc6 {[%clk 0:00:42.6]} 43... Rf6 {[%clk 0:00:02.6]} 44. Qd7+
{[%clk 0:00:41.2]} 44... Kg6 {[%clk 0:00:02.9]} 45. c5 {[%clk 0:00:40.3]} 45...
Rf7 {[%clk 0:00:02.8]} 46. c6 {[%clk 0:00:39.2]} 1-0

[Event "Late-Titled-Tuesday-Blitz-September-26-2023"]
[Site "Chess.com"]
[Date "2023.09.26"]
[Round "4"]
[White "dedpihto_v_kozhanom_palto"]
[Black "Herman-NY"]
[Result "1-0"]
[WhiteElo "2691"]
[BlackElo "2504"]
[TimeControl "180+1"]
[EndTime "14:38:17 PDT"]
[Termination "dedpihto_v_kozhanom_palto won by resignation"]

1. c4 {[%clk 0:02:53.3]} 1... Nf6 {[%clk 0:02:56.7]} 2. Nc3 {[%clk 0:02:51.3]}
2... g6 {[%clk 0:02:57.2]} 3. e4 {[%clk 0:02:51]} 3... d6 {[%clk 0:02:57.8]} 4.
d4 {[%clk 0:02:51.3]} 4... Bg7 {[%clk 0:02:58.4]} 5. f4 {[%clk 0:02:51.8]} 5...
O-O {[%clk 0:02:58.6]} 6. Nf3 {[%clk 0:02:52]} 6... Na6 {[%clk 0:02:57.5]} 7.
Bd3 {[%clk 0:02:51.9]} 7... e5 {[%clk 0:02:57.4]} 8. fxe5 {[%clk 0:02:52.8]}
8... dxe5 {[%clk 0:02:58.1]} 9. d5 {[%clk 0:02:53.5]} 9... Ne8 {[%clk
0:02:57.7]} 10. O-O {[%clk 0:02:52.3]} 10... Nc5 {[%clk 0:02:57.2]} 11. Bc2
{[%clk 0:02:52.3]} 11... a5 {[%clk 0:02:57.1]} 12. Be3 {[%clk 0:02:48.5]} 12...
b6 {[%clk 0:02:57.2]} 13. Qd2 {[%clk 0:02:49.2]} 13... Nd6 {[%clk 0:02:57]} 14.
b3 {[%clk 0:02:48.1]} 14... Bg4 {[%clk 0:02:37.9]} 15. Bh6 {[%clk 0:02:42.4]}
15... Bxf3 {[%clk 0:02:35.3]} 16. Rxf3 {[%clk 0:02:41.1]} 16... f6 {[%clk
0:02:01.7]} 17. Bxg7 {[%clk 0:02:39.9]} 17... Kxg7 {[%clk 0:02:02]} 18. Raf1
{[%clk 0:02:40.2]} 18... Qe7 {[%clk 0:02:02.1]} 19. Qe2 {[%clk 0:02:22.3]} 19...
Rf7 {[%clk 0:01:56.7]} 20. h3 {[%clk 0:02:17.7]} 20... Raf8 {[%clk 0:01:19.3]}
21. g4 {[%clk 0:02:16.5]} 21... Rh8 {[%clk 0:01:17.9]} 22. Rg3 {[%clk
0:02:13.4]} 22... Rhf8 {[%clk 0:00:55.1]} 23. a3 {[%clk 0:02:09.9]} 23... Ra8
{[%clk 0:00:49.6]} 24. Kh2 {[%clk 0:02:07.1]} 24... Kh8 {[%clk 0:00:37.6]} 25.
Rgf3 {[%clk 0:02:05.8]} 25... Nd7 {[%clk 0:00:32.7]} 26. b4 {[%clk 0:01:51.8]}
26... axb4 {[%clk 0:00:31.6]} 27. axb4 {[%clk 0:01:52.7]} 27... Nb7 {[%clk
0:00:10.5]} 28. Rb1 {[%clk 0:01:31.9]} 28... Nd6 {[%clk 0:00:09.7]} 29. Bd3
{[%clk 0:01:29.5]} 29... g5 {[%clk 0:00:07.8]} 30. Rff1 {[%clk 0:01:22.4]} 30...
Nf8 {[%clk 0:00:08.1]} 31. c5 {[%clk 0:01:19.7]} 31... Ne8 {[%clk 0:00:07.7]}
32. d6 {[%clk 0:01:19.4]} 32... cxd6 {[%clk 0:00:07.3]} 33. c6 {[%clk
0:01:03.8]} 33... Ng6 {[%clk 0:00:06.6]} 34. Nd5 {[%clk 0:01:03.9]} 34... Qd8
{[%clk 0:00:06.8]} 35. Ra1 {[%clk 0:00:59.3]} 35... Nf4 {[%clk 0:00:04.4]} 36.
Qe3 {[%clk 0:00:59.7]} 36... Rxa1 {[%clk 0:00:03.5]} 37. Rxa1 {[%clk 0:00:59.6]}
37... Nc7 {[%clk 0:00:04.2]} 38. Qxb6 {[%clk 0:00:49.7]} 38... Nfxd5 {[%clk
0:00:03.6]} 39. exd5 {[%clk 0:00:49.3]} 39... f5 {[%clk 0:00:03.2]} 40. Bxf5
{[%clk 0:00:45.3]} 40... e4 {[%clk 0:00:03.8]} 41. Qd4+ {[%clk 0:00:42.9]} 41...
Kg8 {[%clk 0:00:04]} 42. Qxe4 {[%clk 0:00:37.8]} 42... Qf6 {[%clk 0:00:04.2]}
43. Ra2 {[%clk 0:00:33.1]} 43... Re7 {[%clk 0:00:04.3]} 44. Be6+ {[%clk
0:00:30.4]} 44... Nxe6 {[%clk 0:00:04]} 45. dxe6 {[%clk 0:00:28.1]} 45... Rxe6
{[%clk 0:00:04.6]} 46. Qf5 {[%clk 0:00:25.8]} 46... Qe5+ {[%clk 0:00:01.6]} 47.
Qxe5 {[%clk 0:00:25.7]} 1-0

[Event "Late-Titled-Tuesday-Blitz-September-26-2023"]
[Site "Chess.com"]
[Date "2023.09.26"]
[Round "4"]
[White "DonkyDonkyDonkey"]
[Black "Jaka_Brilej"]
[Result "1/2-1/2"]
[WhiteElo "2749"]
[BlackElo "2522"]
[TimeControl "180+1"]
[EndTime "14:38:18 PDT"]
[Termination "Game drawn by repetition"]

1. d4 {[%clk 0:03:00.9]} 1... d5 {[%clk 0:02:59.2]} 2. Nc3 {[%clk 0:03:00.6]}
2... Nf6 {[%clk 0:02:54.8]} 3. Bf4 {[%clk 0:03:00.4]} 3... e6 {[%clk 0:02:55.3]}
4. Nb5 {[%clk 0:03:00.5]} 4... Na6 {[%clk 0:02:52.3]} 5. e3 {[%clk 0:03:00.9]}
5... Be7 {[%clk 0:02:50.4]} 6. Nf3 {[%clk 0:02:24.2]} 6... O-O {[%clk
0:02:49.5]} 7. Bd3 {[%clk 0:02:18.6]} 7... c6 {[%clk 0:02:49.3]} 8. Nc3 {[%clk
0:02:18.8]} 8... c5 {[%clk 0:02:49.9]} 9. O-O {[%clk 0:02:16.9]} 9... c4 {[%clk
0:02:40.3]} 10. Be2 {[%clk 0:02:16.7]} 10... Bb4 {[%clk 0:02:40.9]} 11. Nd2
{[%clk 0:02:11.7]} 11... Bd6 {[%clk 0:02:38.1]} 12. Bxd6 {[%clk 0:02:04.8]}
12... Qxd6 {[%clk 0:02:37.9]} 13. e4 {[%clk 0:02:05.6]} 13... dxe4 {[%clk
0:02:21.9]} 14. Ndxe4 {[%clk 0:02:02.7]} 14... Nxe4 {[%clk 0:02:22.8]} 15. Nxe4
{[%clk 0:02:03.4]} 15... Qc6 {[%clk 0:02:03.3]} 16. Bf3 {[%clk 0:02:03.3]} 16...
Qc7 {[%clk 0:02:03.6]} 17. c3 {[%clk 0:02:01]} 17... Rb8 {[%clk 0:02:03.3]} 18.
a4 {[%clk 0:01:48.1]} 18... b6 {[%clk 0:01:59.2]} 19. Qe2 {[%clk 0:01:47.2]}
19... Bb7 {[%clk 0:01:57.1]} 20. h3 {[%clk 0:01:46.9]} 20... Rbc8 {[%clk
0:01:51.5]} 21. Nd2 {[%clk 0:01:35.2]} 21... Bxf3 {[%clk 0:01:47.9]} 22. Nxf3
{[%clk 0:01:36.1]} 22... Nb8 {[%clk 0:01:48.1]} 23. Rfd1 {[%clk 0:01:31.4]}
23... Rfd8 {[%clk 0:01:41.8]} 24. Qe4 {[%clk 0:01:13.6]} 24... Nd7 {[%clk
0:01:38.7]} 25. Ne5 {[%clk 0:01:10.1]} 25... Nxe5 {[%clk 0:01:26.6]} 26. dxe5
{[%clk 0:01:11]} 26... h6 {[%clk 0:01:21.3]} 27. f4 {[%clk 0:00:52.6]} 27...
Qc5+ {[%clk 0:01:09.3]} 28. Kf1 {[%clk 0:00:39]} 28... g6 {[%clk 0:00:40.6]} 29.
Ke2 {[%clk 0:00:31.8]} 29... Qc7 {[%clk 0:00:33.2]} 30. h4 {[%clk 0:00:22.8]}
30... h5 {[%clk 0:00:32.9]} 31. Kf3 {[%clk 0:00:22]} 31... Rxd1 {[%clk
0:00:25.5]} 32. Rxd1 {[%clk 0:00:22.9]} 32... Rd8 {[%clk 0:00:26]} 33. Rxd8+
{[%clk 0:00:17]} 33... Qxd8 {[%clk 0:00:26.9]} 34. Kg3 {[%clk 0:00:17.1]} 34...
Qd2 {[%clk 0:00:25.5]} 35. Qxc4 {[%clk 0:00:17]} 35... Qxb2 {[%clk 0:00:23.8]}
36. Qd4 {[%clk 0:00:14.1]} 36... Qe2 {[%clk 0:00:18.9]} 37. Qd8+ {[%clk
0:00:13.5]} 37... Kg7 {[%clk 0:00:19.1]} 38. Qf6+ {[%clk 0:00:13.9]} 38... Kg8
{[%clk 0:00:19.7]} 39. Kh2 {[%clk 0:00:13.8]} 39... Qe3 {[%clk 0:00:19]} 40.
Qd8+ {[%clk 0:00:12]} 40... Kg7 {[%clk 0:00:19.4]} 41. Qf6+ {[%clk 0:00:12.4]}
41... Kg8 {[%clk 0:00:20]} 42. c4 {[%clk 0:00:08.5]} 42... Qe4 {[%clk
0:00:18.7]} 43. Qd8+ {[%clk 0:00:08.2]} 43... Kg7 {[%clk 0:00:19.2]} 44. Qf6+
{[%clk 0:00:08.9]} 44... Kg8 {[%clk 0:00:19.7]} 45. Qd8+ {[%clk 0:00:08.5]}
45... Kg7 {[%clk 0:00:20]} 46. Qf6+ {[%clk 0:00:08.3]} 46... Kg8 {[%clk
0:00:20.5]} 1/2-1/2

[Event "Late-Titled-Tuesday-Blitz-September-26-2023"]
[Site "Chess.com"]
[Date "2023.09.26"]
[Round "4"]
[White "TheMagician"]
[Black "sergeikim"]
[Result "0-1"]
[WhiteElo "2258"]
[BlackElo "2613"]
[TimeControl "180+1"]
[EndTime "14:38:21 PDT"]
[Termination "sergeikim won on time"]

1. a3 {[%clk 0:03:00]} 1... Nf6 {[%clk 0:02:59.5]} 2. c4 {[%clk 0:02:57.1]} 2...
g6 {[%clk 0:02:59.6]} 3. b4 {[%clk 0:02:55.7]} 3... Bg7 {[%clk 0:03:00]} 4. Bb2
{[%clk 0:02:55.8]} 4... O-O {[%clk 0:03:00.5]} 5. e3 {[%clk 0:02:56]} 5... d6
{[%clk 0:03:00.5]} 6. Nf3 {[%clk 0:02:56]} 6... e5 {[%clk 0:03:00.5]} 7. Be2
{[%clk 0:02:54.9]} 7... e4 {[%clk 0:03:00.1]} 8. Nd4 {[%clk 0:02:54.7]} 8... Re8
{[%clk 0:02:51.8]} 9. Nc2 {[%clk 0:02:48.3]} 9... Nc6 {[%clk 0:02:48.4]} 10. O-O
{[%clk 0:02:46.4]} 10... Ne5 {[%clk 0:02:47.8]} 11. Bxe5 {[%clk 0:02:42.8]}
11... Rxe5 {[%clk 0:02:46.2]} 12. Nc3 {[%clk 0:02:42.7]} 12... c6 {[%clk
0:02:43]} 13. f3 {[%clk 0:02:42.3]} 13... Re8 {[%clk 0:02:39.6]} 14. Rb1 {[%clk
0:02:40.3]} 14... Bf5 {[%clk 0:02:34.1]} 15. g4 {[%clk 0:02:29.2]} 15... exf3
{[%clk 0:02:32]} 16. gxf5 {[%clk 0:02:29.3]} 16... fxe2 {[%clk 0:02:31.6]} 17.
Qxe2 {[%clk 0:02:29.7]} 17... Ne4 {[%clk 0:02:22.8]} 18. Nxe4 {[%clk 0:02:25.6]}
18... Rxe4 {[%clk 0:02:21.7]} 19. d3 {[%clk 0:02:19.7]} 19... Qg5+ {[%clk
0:02:06.5]} 20. Kh1 {[%clk 0:02:19]} 20... Rg4 {[%clk 0:02:06.3]} 21. e4 {[%clk
0:02:03.8]} 21... Re8 {[%clk 0:02:00.5]} 22. Ne3 {[%clk 0:02:01]} 22... Rh4
{[%clk 0:01:56.4]} 23. Rg1 {[%clk 0:01:52.7]} 23... Qh5 {[%clk 0:01:54.8]} 24.
Qxh5 {[%clk 0:01:51.5]} 24... Rxh5 {[%clk 0:01:54.7]} 25. Rg3 {[%clk 0:01:40]}
25... Be5 {[%clk 0:01:50.6]} 26. Rg2 {[%clk 0:01:40]} 26... Rh4 {[%clk
0:01:43.7]} 27. Rf1 {[%clk 0:01:35.5]} 27... Kg7 {[%clk 0:01:37.6]} 28. Rf3
{[%clk 0:01:19.9]} 28... Rf4 {[%clk 0:01:33.6]} 29. Rxf4 {[%clk 0:01:18.2]}
29... Bxf4 {[%clk 0:01:33.3]} 30. Nc2 {[%clk 0:01:13.2]} 30... Kf6 {[%clk
0:01:29]} 31. fxg6 {[%clk 0:01:12.2]} 31... hxg6 {[%clk 0:01:28.7]} 32. Rf2
{[%clk 0:01:12.2]} 32... g5 {[%clk 0:01:27.9]} 33. Ne3 {[%clk 0:01:11.4]} 33...
Ke5 {[%clk 0:01:25.9]} 34. Nc2 {[%clk 0:01:07.9]} 34... Rh8 {[%clk 0:01:21.6]}
35. Re2 {[%clk 0:00:46.5]} 35... c5 {[%clk 0:01:18]} 36. bxc5 {[%clk 0:00:23.9]}
36... dxc5 {[%clk 0:01:18]} 37. a4 {[%clk 0:00:23.8]} 37... Rh3 {[%clk
0:01:15.3]} 38. Ne1 {[%clk 0:00:22.6]} 38... Kd4 {[%clk 0:01:10.1]} 39. Kg1
{[%clk 0:00:19]} 39... Re3 {[%clk 0:00:59]} 40. Kf2 {[%clk 0:00:13.2]} 40...
Rxe2+ {[%clk 0:00:56.6]} 41. Kxe2 {[%clk 0:00:13.5]} 41... Kc3 {[%clk
0:00:52.6]} 42. h3 {[%clk 0:00:11.1]} 42... Kb4 {[%clk 0:00:51.4]} 43. Ng2
{[%clk 0:00:11.3]} 43... Be5 {[%clk 0:00:49.1]} 44. Kf3 {[%clk 0:00:10.1]} 44...
Kxa4 {[%clk 0:00:48]} 45. Kg4 {[%clk 0:00:10.1]} 45... f6 {[%clk 0:00:48.2]} 46.
h4 {[%clk 0:00:05.2]} 46... gxh4 {[%clk 0:00:47.6]} 47. Nxh4 {[%clk 0:00:04.6]}
47... Kb3 {[%clk 0:00:47.2]} 48. Kf5 {[%clk 0:00:04.3]} 48... a5 {[%clk
0:00:46.2]} 49. Nf3 {[%clk 0:00:04.5]} 49... Bc3 {[%clk 0:00:44.3]} 0-1

[Event "Late-Titled-Tuesday-Blitz-September-26-2023"]
[Site "Chess.com"]
[Date "2023.09.26"]
[Round "4"]
[White "JonasGallasch"]
[Black "Djager97"]
[Result "1-0"]
[WhiteElo "2446"]
[BlackElo "2570"]
[TimeControl "180+1"]
[EndTime "14:38:24 PDT"]
[Termination "JonasGallasch won by checkmate"]

1. d4 {[%clk 0:03:00.4]} 1... d5 {[%clk 0:02:59.4]} 2. c4 {[%clk 0:02:59.9]}
2... e6 {[%clk 0:02:59.6]} 3. Nc3 {[%clk 0:02:58.6]} 3... c6 {[%clk 0:02:59.4]}
4. e4 {[%clk 0:02:57.8]} 4... Bb4 {[%clk 0:02:59.9]} 5. cxd5 {[%clk 0:02:53.8]}
5... exd5 {[%clk 0:02:59.6]} 6. e5 {[%clk 0:02:53.6]} 6... Ne7 {[%clk
0:03:00.1]} 7. Bd3 {[%clk 0:02:53.4]} 7... c5 {[%clk 0:03:00.3]} 8. Nf3 {[%clk
0:02:52.3]} 8... Nbc6 {[%clk 0:03:00.4]} 9. O-O {[%clk 0:02:48.9]} 9... cxd4
{[%clk 0:02:57.1]} 10. Nb5 {[%clk 0:02:38.7]} 10... O-O {[%clk 0:02:56.2]} 11.
Nbxd4 {[%clk 0:02:36.8]} 11... Ng6 {[%clk 0:02:31.6]} 12. Bg5 {[%clk 0:02:30]}
12... Be7 {[%clk 0:02:31.1]} 13. Bxe7 {[%clk 0:02:26]} 13... Qxe7 {[%clk
0:02:32]} 14. Re1 {[%clk 0:02:20.2]} 14... Bg4 {[%clk 0:02:31.4]} 15. Nxc6
{[%clk 0:02:12.1]} 15... bxc6 {[%clk 0:02:29.9]} 16. h3 {[%clk 0:02:12.4]} 16...
Be6 {[%clk 0:02:22.4]} 17. Rc1 {[%clk 0:02:08.8]} 17... c5 {[%clk 0:02:22.1]}
18. Qd2 {[%clk 0:02:01.7]} 18... a5 {[%clk 0:02:10.7]} 19. Ng5 {[%clk
0:01:56.6]} 19... Rfc8 {[%clk 0:02:01.3]} 20. f4 {[%clk 0:01:55]} 20... Qd7
{[%clk 0:01:41.5]} 21. Rf1 {[%clk 0:01:37.3]} 21... Bf5 {[%clk 0:01:38.8]} 22.
Bxf5 {[%clk 0:01:22.9]} 22... Qxf5 {[%clk 0:01:39.7]} 23. g4 {[%clk 0:01:23.2]}
23... Qd7 {[%clk 0:01:37.5]} 24. Ne4 {[%clk 0:01:10.7]} 24... h5 {[%clk
0:00:53.9]} 25. Nd6 {[%clk 0:00:59]} 25... hxg4 {[%clk 0:00:49.9]} 26. Nxc8
{[%clk 0:00:52.6]} 26... Rxc8 {[%clk 0:00:50.8]} 27. hxg4 {[%clk 0:00:45]} 27...
Qxg4+ {[%clk 0:00:51.7]} 28. Qg2 {[%clk 0:00:45.4]} 28... Qf5 {[%clk 0:00:52.2]}
29. Qg3 {[%clk 0:00:15.6]} 29... Rc6 {[%clk 0:00:48.7]} 30. Rf2 {[%clk
0:00:05.6]} 30... d4 {[%clk 0:00:45.3]} 31. Re1 {[%clk 0:00:02.4]} 31... Nf8
{[%clk 0:00:42.2]} 32. Qf3 {[%clk 0:00:02.2]} 32... c4 {[%clk 0:00:35.2]} 33.
Qxc6 {[%clk 0:00:01.5]} 33... Ne6 {[%clk 0:00:10.6]} 34. Qe4 {[%clk 0:00:01.8]}
34... Qg4+ {[%clk 0:00:09]} 35. Rg2 {[%clk 0:00:02.4]} 35... Qh3 {[%clk
0:00:09.6]} 36. f5 {[%clk 0:00:02.8]} 36... Nc5 {[%clk 0:00:07.5]} 37. Qg4
{[%clk 0:00:02.7]} 37... Qd3 {[%clk 0:00:06.9]} 38. Qxg7# {[%clk 0:00:02.7]} 1-0